[Event "91st GER-ch 2020"]
[Site "Magdeburg"]
[Date "2020.08.18"]
[Round "4.12"]
[White "Geue, Niklas"]
[Black "Koellner, Ruben Gideon"]
[Result "1-0"]
[ECO "A05"]
[WhiteElo "2050"]
[BlackElo "2376"]
[Annotator "ChessBase"]
[PlyCount "127"]
[EventDate "2020.08.16"]
[EventType "swiss"]
[EventCountry "GER"]
[SourceTitle "playchess.com"]
[Source "ChessBase"]
[SourceQuality "1"]
[TimeControl "40/5400+30:1800+30"]

1. Nf3 {[%emt 0:00:00]} Nf6 {[%emt 0:00:00]} 2. g3 {[%emt 0:00:00]} d5 {[%emt 0:00:00]} 3. Bg2 {[%emt 0:00:10]} Nbd7 {[%emt 0:00:01]} 4. d4 {[%emt 0:00:07]} b5 {[%emt 0:00:12]} 5. O-O {[%emt 0:00:11]} e6 {[%emt 0:00:04]} 6. b3 {[%emt 0:00:33]} Bb7 {[%emt 0:00:47]} 7. c4 {[%emt 0:01:45]} dxc4 {[%emt 0:01:18]} 8. bxc4 {[%emt 0:00:20]} bxc4 {[%emt 0:03:26]} 9. Na3 {[%emt 0:00:36]} Nb6 {[%emt 0:01:46]} 10. Nxc4 {[%emt 0:01:11]} c5 {[%emt 0:02:19]} 11. Ba3 {[%emt 0:08:08]} Rc8 {[%emt 0:05:00]} 12. Rc1 {[%emt 0:08:53]} cxd4 {[%emt 0:10:20]} 13. Bxf8 {[%emt 0:02:49]} Kxf8 {[%emt 0:00:21]} 14. Nce5 {[%emt 0:04:54]} Rxc1 {[%emt 0:11:55]} 15. Qxc1 {[%emt 0:00:05]} Bxf3 {[%emt 0:00:52]} 16. Bxf3 {[%emt 0:06:16]} Qd6 {[%emt 0:00:59]} 17. Qf4 {[%emt 0:00:41]} Ke7 {[%emt 0:06:58]} 18. Rd1 {[%emt 0:02:17]} Rc8 {[%emt 0:00:58]} 19. Rxd4 {[%emt 0:01:44]} Qc5 {[%emt 0:00:10]} 20. Nd3 {[%emt 0:09:55]} g5 {[%emt 0:07:03]} 21. Qe3 {[%emt 0:07:17]} Nc4 {[%emt 0:00:30]} 22. Nxc5 {[%emt 0:01:44]} Nxe3 {[%emt 0:00:05]} 23. Ra4 {[%emt 0:03:25]} Rxc5 {[%emt 0:05:12]} 24. Rxa7+ {[%emt 0:00:20]} Nd7 {[%emt 0:00:03]} 25. fxe3 {[%emt 0:00:09]} f5 {[%emt 0:01:06]} 26. g4 {[%emt 0:06:28]} Kd6 {[%emt 0:02:56]} 27. a4 {[%emt 0:01:58]} Nf6 {[%emt 0:01:02]} 28. gxf5 {[%emt 0:02:15]} exf5 {[%emt 0:01:49]} 29. a5 {[%emt 0:00:22]} Ne4 {[%emt 0:06:47]} 30. a6 {[%emt 0:01:02]} Rc7 {[%emt 0:03:54]} 31. Ra8 {[%emt 0:03:45]} Kc5 {[%emt 0:21:51]} 32. Rf8 {[%emt 0:09:33]} Kb6 {[%emt 0:01:34]} 33. Rxf5 {[%emt 0:00:35]} Nc5 {[%emt 0:00:02]} 34. Rxg5 {[%emt 0:01:30]} Kxa6 {[%emt 0:00:04]} 35. Kf2 {[%emt 0:02:13]} Kb6 {[%emt 0:00:03]} 36. Bd5 {[%emt 0:02:18]} Re7 {[%emt 0:00:34]} 37. Kf3 {[%emt 0:00:56]} Kc7 {[%emt 0:00:20]} 38. e4 {[%emt 0:01:14]} Kd6 {[%emt 0:00:21]} 39. Kf4 {[%emt 0:02:01]} Nd7 {[%emt 0:01:39]} 40. Rh5 {[%emt 0:01:45]} Rg7 {[%emt 0:01:22]} 41. Rh6+ {[%emt 0:32:37]} Ke7 {[%emt 0:30:07]} 42. e5 {[%emt 0:00:47]} Nf8 {[%emt 0:00:05]} 43. Ra6 {[%emt 0:03:39]} Ng6+ {[%emt 0:00:25]} 44. Ke4 {[%emt 0:00:17]} Nh4 {[%emt 0:01:19]} 45. h3 {[%emt 0:00:00]} Ng6 {[%emt 0:00:00]} 46. Ra7+ {[%emt 0:00:00]} Kf8 {[%emt 0:00:00]} 47. Ra8+ {[%emt 0:00:00]} Ke7 {[%emt 0:00:00]} 48. e3 {[%emt 0:00:00]} Nh4 {[%emt 0:00:00]} 49. e6 {[%emt 0:00:00]} Ng6 {[%emt 0:00:00]} 50. Rb8 {[%emt 0:00:00]} Kf6 {[%emt 0:00:00]} 51. Rb1 {[%emt 0:00:00]} Ke7 {[%emt 0:00:00]} 52. Rb7+ {[%emt 0:00:00]} Kf8 {[%emt 0:00:00]} 53. Rf7+ {[%emt 0:00:00]} Rxf7 {[%emt 0:00:00]} 54. exf7 {[%emt 0:00:00]} Ne7 {[%emt 0:00:00]} 55. Ke5 {[%emt 0:00:00]} Nxd5 {[%emt 0:00:00]} 56. Kxd5 {[%emt 0:00:00]} Kxf7 {[%emt 0:00:00]} 57. Kd6 {[%emt 0:00:00]} Kf6 {[%emt 0:00:00]} 58. e4 {[%emt 0:00:00]} Kf7 {[%emt 0:00:00]} 59. e5 {[%emt 0:00:00]} Ke8 {[%emt 0:00:00]} 60. Ke6 {[%emt 0:00:00]} h6 {[%emt 0:00:00]} 61. h4 {[%emt 0:00:00]} h5 {[%emt 0:00:00]} 62. Kf6 {[%emt 0:00:00]} Kf8 {[%emt 0:00:00]} 63. e6 {[%emt 0:00:00]} Ke8 {[%emt 0:00:00]} 64. e7 {[%emt 0:00:00]} 1-0

[Event "91st GER-ch 2020"]
[Site "Magdeburg"]
[Date "2020.08.18"]
[Round "4.13"]
[White "Stern, Rene"]
[Black "Schulz, Lukas"]
[Result "1-0"]
[ECO "A05"]
[WhiteElo "2526"]
[BlackElo "2293"]
[Annotator "ChessBase"]
[PlyCount "69"]
[EventDate "2020.08.16"]
[EventType "swiss"]
[EventCountry "GER"]
[SourceTitle "playchess.com"]
[Source "ChessBase"]
[SourceQuality "1"]
[TimeControl "40/5400+30:1800+30"]

1. Nf3 {[%emt 0:00:00]} Nf6 {[%emt 0:00:00]} 2. c4 {[%emt 0:00:00]} g6 {[%emt 0:00:00]} 3. Nc3 {[%emt 0:00:00]} Bg7 {[%emt 0:00:10]} 4. e4 {[%emt 0:00:00]} d6 {[%emt 0:00:15]} 5. d4 {[%emt 0:00:00]} O-O {[%emt 0:00:06]} 6. Bd3 {[%emt 0:00:00]} e5 {[%emt 0:04:50]} 7. d5 {[%emt 0:00:22]} Nbd7 {[%emt 0:01:33]} 8. h3 {[%emt 0:00:23]} Nc5 {[%emt 0:02:43]} 9. Bc2 {[%emt 0:00:06]} a5 {[%emt 0:01:27]} 10. Be3 {[%emt 0:03:01]} Nfd7 {[%emt 0:03:27]} 11. g4 {[%emt 0:03:50]} Nb6 {[%emt 0:03:23]} 12. Qe2 {[%emt 0:05:17]} Bd7 {[%emt 0:06:03]} 13. O-O-O {[%emt 0:02:16]} a4 {[%emt 0:07:25]} 14. a3 {[%emt 0:01:46]} Qb8 {[%emt 0:03:57]} 15. Nd2 {[%emt 0:13:02]} c6 {[%emt 0:07:33]} 16. Kb1 {[%emt 0:00:21]} cxd5 {[%emt 0:07:47]} 17. cxd5 {[%emt 0:00:06]} Rc8 {[%emt 0:00:38]} 18. h4 {[%emt 0:02:41]} h6 {[%emt 0:04:13]} 19. h5 {[%emt 0:05:02]} g5 {[%emt 0:00:05]} 20. f3 {[%emt 0:01:13]} Ra7 {[%emt 0:05:58]} 21. Bd3 {[%emt 0:08:11]} Na8 {[%emt 0:05:27]} 22. Bb5 {[%emt 0:00:43]} Ra5 {[%emt 0:04:25]} 23. Bxd7 {[%emt 0:05:54]} Nxd7 {[%emt 0:00:04]} 24. Nc4 {[%emt 0:01:10]} Ra6 {[%emt 0:00:10]} 25. Na2 {[%emt 0:01:08]} Nc5 {[%emt 0:06:09]} 26. Nb4 {[%emt 0:00:32]} Ra7 {[%emt 0:00:35]} 27. Rc1 {[%emt 0:00:58]} Qc7 {[%emt 0:08:00]} 28. Rc3 {[%emt 0:04:03]} Nb6 {[%emt 0:01:07]} 29. Bxc5 {[%emt 0:14:08]} dxc5 {[%emt 0:00:37]} 30. d6 {[%emt 0:00:44]} Qd8 {[%emt 0:00:33]} 31. Nxb6 {[%emt 0:01:15]} Qxb6 {[%emt 0:00:06]} 32. d7 {[%emt 0:01:43]} Rd8 {[%emt 0:01:33]} 33. Nd5 {[%emt 0:00:10]} Qa5 {[%emt 0:02:33]} 34. Rd1 {[%emt 0:10:22]} b6 {[%emt 0:01:45]} 35. Ne7+ {[%emt 0:00:22]} 1-0

[Event "91st GER-ch 2020"]
[Site "Magdeburg"]
[Date "2020.08.18"]
[Round "4.15"]
[White "Ehmann, Thilo"]
[Black "Voege, Tobias"]
[Result "1/2-1/2"]
[ECO "B38"]
[WhiteElo "2329"]
[BlackElo "2326"]
[Annotator "ChessBase"]
[PlyCount "80"]
[EventDate "2020.08.16"]
[EventType "swiss"]
[EventCountry "GER"]
[SourceTitle "playchess.com"]
[Source "ChessBase"]
[SourceQuality "1"]
[TimeControl "40/5400+30:1800+30"]

1. e4 {[%emt 0:00:00]} c5 {[%emt 0:00:00]} 2. Nf3 {[%emt 0:00:00]} Nc6 {[%emt 0:00:14]} 3. d4 {[%emt 0:00:00]} cxd4 {[%emt 0:00:03]} 4. Nxd4 {[%emt 0:00:00]} g6 {[%emt 0:00:25]} 5. c4 {[%emt 0:00:00]} Bg7 {[%emt 0:00:04]} 6. Be3 {[%emt 0:00:01]} Nf6 {[%emt 0:00:04]} 7. Nc3 {[%emt 0:00:03]} O-O {[%emt 0:00:06]} 8. Be2 {[%emt 0:00:12]} d6 {[%emt 0:00:05]} 9. Qd2 {[%emt 0:00:22]} Ng4 {[%emt 0:07:36]} 10. Bxg4 {[%emt 0:00:57]} Bxg4 {[%emt 0:00:33]} 11. f3 {[%emt 0:00:35]} Nxd4 {[%emt 0:04:45]} 12. Bxd4 {[%emt 0:00:05]} Be6 {[%emt 0:04:32]} 13. b3 {[%emt 0:01:26]} Bxd4 {[%emt 0:07:14]} 14. Qxd4 {[%emt 0:00:10]} Qa5 {[%emt 0:00:28]} 15. O-O {[%emt 0:05:14]} Qc5 {[%emt 0:08:48]} 16. Qxc5 {[%emt 0:01:19]} dxc5 {[%emt 0:00:11]} 17. Nd5 {[%emt 0:08:32]} Bxd5 {[%emt 0:00:49]} 18. exd5 {[%emt 0:00:45]} Rfd8 {[%emt 0:02:52]} 19. Rae1 {[%emt 0:00:52]} Kf8 {[%emt 0:00:56]} 20. f4 {[%emt 0:01:05]} a6 {[%emt 0:10:34]} 21. f5 {[%emt 0:02:05]} Rd6 {[%emt 0:00:38]} 22. g4 {[%emt 0:19:41]} b5 {[%emt 0:10:48]} 23. g5 {[%emt 0:00:54]} bxc4 {[%emt 0:03:52]} 24. bxc4 {[%emt 0:00:08]} Rb8 {[%emt 0:00:14]} 25. f6 {[%emt 0:00:30]} exf6 {[%emt 0:04:56]} 26. Rxf6 {[%emt 0:00:34]} Rxf6 {[%emt 0:04:31]} 27. gxf6 {[%emt 0:00:13]} Rb6 {[%emt 0:00:11]} 28. Re7 {[%emt 0:00:13]} Rxf6 {[%emt 0:00:13]} 29. Rc7 {[%emt 0:00:04]} Rf3 {[%emt 0:01:08]} 30. Rxc5 {[%emt 0:01:06]} Ra3 {[%emt 0:01:00]} 31. Rc8+ {[%emt 0:18:51]} Ke7 {[%emt 0:00:22]} 32. c5 {[%emt 0:07:58]} Rxa2 {[%emt 0:04:41]} 33. d6+ {[%emt 0:08:04]} Kd7 {[%emt 0:05:44]} 34. Rc7+ {[%emt 0:00:22]} Kd8 {[%emt 0:00:34]} 35. c6 {[%emt 0:02:28]} Rc2 {[%emt 0:00:43]} 36. Rd7+ {[%emt 0:00:24]} Kc8 {[%emt 0:00:10]} 37. Rc7+ {[%emt 0:00:11]} Kd8 {[%emt 0:00:14]} 38. Kf1 {[%emt 0:00:26]} a5 {[%emt 0:00:44]} 39. Rd7+ {[%emt 0:00:11]} Kc8 {[%emt 0:00:05]} 40. Rc7+ {[%emt 0:00:04]} Kd8 {[%emt 0:00:11]} 1/2-1/2

[Event "91st GER-ch 2020"]
[Site "Magdeburg"]
[Date "2020.08.18"]
[Round "4.16"]
[White "Trifan, Andrei Ioan"]
[Black "Schulte, Felix"]
[Result "1-0"]
[ECO "B12"]
[WhiteElo "2249"]
[BlackElo "2174"]
[Annotator "ChessBase"]
[PlyCount "103"]
[EventDate "2020.08.16"]
[EventType "swiss"]
[EventCountry "GER"]
[SourceTitle "playchess.com"]
[Source "ChessBase"]
[SourceQuality "1"]
[TimeControl "40/5400+30:1800+30"]

1. e4 {[%emt 0:00:00]} c6 {[%emt 0:00:00]} 2. d4 {[%emt 0:00:37]} g6 {[%emt 0:00:01]} 3. Nc3 {[%emt 0:02:40]} d5 {[%emt 0:00:11]} 4. e5 {[%emt 0:02:13]} Bg7 {[%emt 0:02:32]} 5. f4 {[%emt 0:03:49]} Nh6 {[%emt 0:01:32]} 6. Nf3 {[%emt 0:04:25]} Bg4 {[%emt 0:02:25]} 7. Be3 {[%emt 0:10:21]} Qb6 {[%emt 0:02:35]} 8. Rb1 {[%emt 0:02:03]} f6 {[%emt 0:12:00]} 9. Be2 {[%emt 0:07:35]} Nd7 {[%emt 0:04:54]} 10. Bf2 {[%emt 0:06:47]} O-O {[%emt 0:06:16]} 11. O-O {[%emt 0:03:02]} Rfe8 {[%emt 0:04:21]} 12. Qd2 {[%emt 0:08:06]} a5 {[%emt 0:01:47]} 13. a4 {[%emt 0:05:24]} Rad8 {[%emt 0:01:52]} 14. h3 {[%emt 0:00:57]} Be6 {[%emt 0:01:14]} 15. g4 {[%emt 0:04:30]} Nf8 {[%emt 0:02:10]} 16. Be3 {[%emt 0:04:02]} f5 {[%emt 0:01:42]} 17. g5 {[%emt 0:02:11]} Nf7 {[%emt 0:00:06]} 18. h4 {[%emt 0:00:10]} Rb8 {[%emt 0:06:50]} 19. Nd1 {[%emt 0:04:34]} Nd8 {[%emt 0:03:20]} 20. Nf2 {[%emt 0:02:25]} Bf7 {[%emt 0:01:28]} 21. Nd3 {[%emt 0:00:26]} Nde6 {[%emt 0:00:32]} 22. b4 {[%emt 0:04:31]} axb4 {[%emt 0:01:31]} 23. Rxb4 {[%emt 0:01:14]} Qa7 {[%emt 0:00:07]} 24. Rfb1 {[%emt 0:01:35]} b6 {[%emt 0:00:34]} 25. Kg2 {[%emt 0:02:50]} Nd7 {[%emt 0:01:25]} 26. Nf2 {[%emt 0:02:33]} c5 {[%emt 0:00:25]} 27. dxc5 {[%emt 0:01:33]} bxc5 {[%emt 0:00:09]} 28. Rxb8 {[%emt 0:03:56]} Rxb8 {[%emt 0:00:55]} 29. Rxb8+ {[%emt 0:00:09]} Nxb8 {[%emt 0:00:47]} 30. c3 {[%emt 0:00:42]} Qxa4 {[%emt 0:00:54]} 31. Qb2 {[%emt 0:01:30]} Qa7 {[%emt 0:02:31]} 32. Nd3 {[%emt 0:01:51]} Nd7 {[%emt 0:01:29]} 33. Qb5 {[%emt 0:01:22]} Qc7 {[%emt 0:00:53]} 34. Qa6 {[%emt 0:02:44]} Nb6 {[%emt 0:06:43]} 35. Qb5 {[%emt 0:01:49]} Nd7 {[%emt 0:02:37]} 36. Bd1 {[%emt 0:00:24]} Be8 {[%emt 0:04:29]} 37. Ba4 {[%emt 0:00:36]} Kf7 {[%emt 0:00:26]} 38. Qc6 {[%emt 0:00:53]} Qa5 {[%emt 0:03:11]} 39. Nxc5 {[%emt 0:01:00]} Nxf4+ {[%emt 0:06:18]} 40. Bxf4 {[%emt 0:00:30]} Qxc5 {[%emt 0:06:33]} 41. e6+ {[%emt 0:30:27]} Kf8 {[%emt 0:30:20]} 42. exd7 {[%emt 0:00:10]} Qxc6 {[%emt 0:00:12]} 43. Bxc6 {[%emt 0:00:22]} Bxd7 {[%emt 0:00:04]} 44. Bxd7 {[%emt 0:00:07]} Bxc3 {[%emt 0:00:05]} 45. Be6 {[%emt 0:00:34]} Kg7 {[%emt 0:00:40]} 46. Bxd5 {[%emt 0:00:53]} Bb4 {[%emt 0:00:28]} 47. Be5+ {[%emt 0:02:25]} Kf8 {[%emt 0:00:08]} 48. Kh3 {[%emt 0:00:00]} Ba3 {[%emt 0:00:00]} 49. Nd4 {[%emt 0:00:00]} Bc1 {[%emt 0:00:00]} 50. Ne6+ {[%emt 0:00:00]} Ke8 {[%emt 0:00:00]} 51. Bg7 {[%emt 0:00:00]} Kf7 {[%emt 0:00:00]} 52. Bh6 {[%emt 0:00:00]} 1-0

[Event "91st GER-ch 2020"]
[Site "Magdeburg"]
[Date "2020.08.18"]
[Round "4.17"]
[White "Tschernatsch, Johannes"]
[Black "Michalowski, Peter"]
[Result "1-0"]
[ECO "B92"]
[WhiteElo "2241"]
[BlackElo "2106"]
[Annotator "ChessBase"]
[PlyCount "65"]
[EventDate "2020.08.16"]
[EventType "swiss"]
[EventCountry "GER"]
[SourceTitle "playchess.com"]
[Source "ChessBase"]
[SourceQuality "1"]
[TimeControl "40/5400+30:1800+30"]

1. e4 {[%emt 0:00:00]} c5 {[%emt 0:00:00]} 2. Nf3 {[%emt 0:00:00]} d6 {[%emt 0:00:24]} 3. d4 {[%emt 0:00:00]} cxd4 {[%emt 0:00:05]} 4. Nxd4 {[%emt 0:00:00]} Nf6 {[%emt 0:00:10]} 5. Nc3 {[%emt 0:00:00]} a6 {[%emt 0:00:07]} 6. Be2 {[%emt 0:00:10]} e5 {[%emt 0:00:11]} 7. Nb3 {[%emt 0:00:06]} Be7 {[%emt 0:00:07]} 8. O-O {[%emt 0:00:09]} O-O {[%emt 0:00:05]} 9. Be3 {[%emt 0:00:07]} Be6 {[%emt 0:01:06]} 10. Qd2 {[%emt 0:00:23]} Nbd7 {[%emt 0:01:25]} 11. a4 {[%emt 0:01:29]} b6 {[%emt 0:19:45]} 12. f3 {[%emt 0:03:19]} Qc7 {[%emt 0:06:36]} 13. Rfd1 {[%emt 0:06:18]} h6 {[%emt 0:13:48]} 14. Nc1 {[%emt 0:02:21]} Nc5 {[%emt 0:07:28]} 15. N1a2 {[%emt 0:03:33]} Rfd8 {[%emt 0:11:51]} 16. Nb4 {[%emt 0:02:32]} Qb7 {[%emt 0:03:46]} 17. Nbd5 {[%emt 0:03:31]} Nxd5 {[%emt 0:15:11]} 18. Nxd5 {[%emt 0:00:08]} Bg5 {[%emt 0:09:58]} 19. Bxg5 {[%emt 0:01:25]} hxg5 {[%emt 0:00:02]} 20. Qxg5 {[%emt 0:01:59]} Bxd5 {[%emt 0:00:43]} 21. exd5 {[%emt 0:00:52]} b5 {[%emt 0:00:45]} 22. axb5 {[%emt 0:01:00]} axb5 {[%emt 0:00:03]} 23. h4 {[%emt 0:04:47]} Rdc8 {[%emt 0:01:18]} 24. Rxa8 {[%emt 0:03:39]} Rxa8 {[%emt 0:00:22]} 25. h5 {[%emt 0:04:01]} Qb6 {[%emt 0:00:34]} 26. Kh2 {[%emt 0:00:48]} f6 {[%emt 0:02:22]} 27. Qg6 {[%emt 0:00:17]} b4 {[%emt 0:00:25]} 28. h6 {[%emt 0:01:32]} Ra7 {[%emt 0:01:25]} 29. h7+ {[%emt 0:12:57]} Kh8 {[%emt 0:00:04]} 30. Qe8+ {[%emt 0:00:04]} Kxh7 {[%emt 0:00:23]} 31. Rh1 {[%emt 0:00:53]} g5 {[%emt 0:02:26]} 32. Kg3+ {[%emt 0:00:46]} Kg7 {[%emt 0:00:13]} 33. Qh8+ {[%emt 0:02:16]} 1-0

[Event "91st GER-ch 2020"]
[Site "Magdeburg"]
[Date "2020.08.19"]
[Round "5.3"]
[White "Heinemann, Thies"]
[Black "Siebrecht, Sebastian"]
[Result "1/2-1/2"]
[ECO "B09"]
[WhiteElo "2507"]
[BlackElo "2417"]
[Annotator "ChessBase"]
[PlyCount "113"]
[EventDate "2020.08.16"]
[EventType "swiss"]
[EventCountry "GER"]
[SourceTitle "playchess.com"]
[Source "ChessBase"]
[SourceQuality "1"]
[TimeControl "40/5400+30:1800+30"]

1. e4 {[%emt 0:00:00]} g6 {[%emt 0:00:00]} 2. d4 {[%emt 0:00:00]} Bg7 {[%emt 0:00:00]} 3. Nc3 {[%emt 0:00:00]} d6 {[%emt 0:00:00]} 4. f4 {[%emt 0:00:05]} Nf6 {[%emt 0:00:37]} 5. Nf3 {[%emt 0:00:08]} O-O {[%emt 0:01:01]} 6. Be3 {[%emt 0:01:23]} b6 {[%emt 0:01:48]} 7. Qd2 {[%emt 0:05:57]} Bb7 {[%emt 0:01:41]} 8. e5 {[%emt 0:01:07]} Ng4 {[%emt 0:01:02]} 9. O-O-O {[%emt 0:04:08]} e6 {[%emt 0:04:43]} 10. Qe2 {[%emt 0:17:46]} Nd7 {[%emt 0:05:34]} 11. Bg1 {[%emt 0:12:20]} Qe7 {[%emt 0:19:04]} 12. h3 {[%emt 0:06:08]} Nh6 {[%emt 0:00:02]} 13. Ne4 {[%emt 0:02:57]} f6 {[%emt 0:03:10]} 14. exd6 {[%emt 0:10:52]} cxd6 {[%emt 0:00:16]} 15. h4 {[%emt 0:05:44]} Rfc8 {[%emt 0:13:33]} 16. h5 {[%emt 0:04:37]} b5 {[%emt 0:05:27]} 17. hxg6 {[%emt 0:01:33]} hxg6 {[%emt 0:01:37]} 18. Qe1 {[%emt 0:04:28]} a6 {[%emt 0:01:00]} 19. Kb1 {[%emt 0:04:48]} Bd5 {[%emt 0:08:33]} 20. Bd3 {[%emt 0:02:28]} Nf8 {[%emt 0:01:06]} 21. Nc3 {[%emt 0:01:49]} Bc4 {[%emt 0:07:34]} 22. Rh3 {[%emt 0:06:10]} d5 {[%emt 0:03:12]} 23. Bxc4 {[%emt 0:03:06]} bxc4 {[%emt 0:00:32]} 24. Nxd5 {[%emt 0:00:59]} Qb7 {[%emt 0:01:56]} 25. Nxf6+ {[%emt 0:01:57]} Bxf6 {[%emt 0:00:39]} 26. Rxh6 {[%emt 0:00:01]} c3 {[%emt 0:01:28]} 27. b3 {[%emt 0:00:14]} a5 {[%emt 0:00:02]} 28. Rd3 {[%emt 0:00:41]} a4 {[%emt 0:02:30]} 29. Rxc3 {[%emt 0:00:54]} axb3 {[%emt 0:00:12]} 30. cxb3 {[%emt 0:00:43]} Qa6 {[%emt 0:00:27]} 31. a4 {[%emt 0:00:55]} Rxc3 {[%emt 0:02:08]} 32. Qxc3 {[%emt 0:00:01]} Qf1+ {[%emt 0:00:07]} 33. Qe1 {[%emt 0:00:49]} Qxg2 {[%emt 0:01:14]} 34. Qf2 {[%emt 0:00:52]} Qg4 {[%emt 0:00:06]} 35. Ne5 {[%emt 0:00:46]} Qd1+ {[%emt 0:00:44]} 36. Kb2 {[%emt 0:00:43]} Rc8 {[%emt 0:02:19]} 37. Nc4 {[%emt 0:00:10]} Rd8 {[%emt 0:00:13]} 38. Qg2 {[%emt 0:00:46]} Rxd4 {[%emt 0:04:31]} 39. Rxg6+ {[%emt 0:00:10]} Nxg6 {[%emt 0:00:07]} 40. Qxg6+ {[%emt 0:00:11]} Bg7 {[%emt 0:00:07]} 41. Qxe6+ {[%emt 0:14:42]} Kh8 {[%emt 0:12:08]} 42. Qh3+ {[%emt 0:05:16]} Kg8 {[%emt 0:00:23]} 43. Qe6+ {[%emt 0:05:00]} Kh8 {[%emt 0:00:18]} 44. Bxd4 {[%emt 0:02:03]} Bxd4+ {[%emt 0:01:05]} 45. Ka3 {[%emt 0:00:25]} Qa1+ {[%emt 0:03:52]} 46. Kb4 {[%emt 0:00:05]} Qc3+ {[%emt 0:00:02]} 47. Kb5 {[%emt 0:01:07]} Qxb3+ {[%emt 0:00:06]} 48. Kc6 {[%emt 0:00:19]} Qxa4+ {[%emt 0:00:06]} 49. Kd5 {[%emt 0:00:09]} Bg7 {[%emt 0:01:13]} 50. Qc8+ {[%emt 0:02:58]} Kh7 {[%emt 0:00:02]} 51. Qf5+ {[%emt 0:00:08]} Kg8 {[%emt 0:01:35]} 52. Qc8+ {[%emt 0:00:57]} Kh7 {[%emt 0:00:05]} 53. Ke6 {[%emt 0:00:52]} Qc2 {[%emt 0:02:17]} 54. Qc5 {[%emt 0:02:36]} Qg6+ {[%emt 0:02:55]} 55. Kd7 {[%emt 0:00:26]} Qf7+ {[%emt 0:00:12]} 56. Kc6 {[%emt 0:00:34]} Qxf4 {[%emt 0:00:17]} 57. Qh5+ {[%emt 0:00:16]} 1/2-1/2

[Event "91st GER-ch 2020"]
[Site "Magdeburg"]
[Date "2020.08.19"]
[Round "5.5"]
[White "Mueller, Dominik"]
[Black "Schulz, Lukas"]
[Result "1-0"]
[ECO "A45"]
[WhiteElo "2252"]
[BlackElo "2293"]
[Annotator "ChessBase"]
[PlyCount "59"]
[EventDate "2020.08.16"]
[EventType "swiss"]
[EventCountry "GER"]
[SourceTitle "playchess.com"]
[Source "ChessBase"]
[SourceQuality "1"]
[TimeControl "40/5400+30:1800+30"]

1. d4 Nf6 2. Bf4 g6 3. Nc3 d5 4. e3 Bg7 5. h4 O-O 6. h5 c5 7. hxg6 fxg6 8. dxc5 Nc6 9. Nf3 Bg4 10. Qd2 Qa5 11. Ne5 Rad8 12. f3 Be6 13. Nxc6 bxc6 14. Ne2 Qa4 15. Qd4 Qa5+ 16. b4 Qa3 17. Be5 a5 18. Nf4 Bf7 19. b5 cxb5 20. Bxb5 Rb8 21. Rb1 Rbc8 22. c6 Qxa2 23. O-O Qxc2 24. Rfc1 Qf5 25. Bd3 Qg5 26. Ba6 Nh5 27. Bxg7 Nxg7 28. Bxc8 Rxc8 29. c7 Nf5 30. Qe5 1-0

[Event "91st GER-ch 2020"]
[Site "Magdeburg"]
[Date "2020.08.19"]
[Round "5.6"]
[White "Hess, Max"]
[Black "Dubiel, Jacek"]
[Result "1/2-1/2"]
[ECO "C77"]
[WhiteElo "2378"]
[BlackElo "2414"]
[Annotator "ChessBase"]
[PlyCount "81"]
[EventDate "2020.08.16"]
[EventType "swiss"]
[EventCountry "GER"]
[SourceTitle "playchess.com"]
[Source "ChessBase"]
[SourceQuality "1"]
[TimeControl "40/5400+30:1800+30"]

1. e4 {[%emt 0:00:00]} e5 {[%emt 0:00:00]} 2. Nf3 {[%emt 0:00:17]} Nc6 {[%emt 0:00:00]} 3. Bb5 {[%emt 0:00:28]} a6 {[%emt 0:00:00]} 4. Ba4 {[%emt 0:00:04]} Nf6 {[%emt 0:00:11]} 5. Qe2 {[%emt 0:00:28]} b5 {[%emt 0:00:25]} 6. Bb3 {[%emt 0:00:05]} Be7 {[%emt 0:00:10]} 7. c3 {[%emt 0:00:23]} O-O {[%emt 0:00:52]} 8. O-O {[%emt 0:00:07]} d5 {[%emt 0:00:57]} 9. d3 {[%emt 0:00:29]} Re8 {[%emt 0:03:32]} 10. Nbd2 {[%emt 0:07:39]} Bf8 {[%emt 0:03:31]} 11. exd5 {[%emt 0:04:01]} Nxd5 {[%emt 0:17:51]} 12. Ne4 {[%emt 0:01:48]} Na5 {[%emt 0:09:51]} 13. Nfg5 {[%emt 0:11:50]} Re7 {[%emt 0:05:25]} 14. Bc2 {[%emt 0:42:14]} h6 {[%emt 0:04:52]} 15. Nf3 {[%emt 0:01:21]} Re8 {[%emt 0:17:33]} 16. b4 {[%emt 0:02:10]} Nb7 {[%emt 0:01:36]} 17. Bb3 {[%emt 0:06:21]} Bf5 {[%emt 0:03:35]} 18. Bxh6 {[%emt 0:02:40]} Nxc3 {[%emt 0:00:52]} 19. Qc2 {[%emt 0:03:08]} Nxe4 {[%emt 0:08:57]} 20. dxe4 {[%emt 0:00:08]} Be6 {[%emt 0:00:55]} 21. Bg5 {[%emt 0:02:42]} Qc8 {[%emt 0:02:37]} 22. Bxe6 {[%emt 0:01:31]} Rxe6 {[%emt 0:00:07]} 23. a4 {[%emt 0:00:36]} Bxb4 {[%emt 0:01:50]} 24. axb5 {[%emt 0:00:04]} axb5 {[%emt 0:00:04]} 25. Rxa8 {[%emt 0:00:07]} Qxa8 {[%emt 0:00:02]} 26. Qxc7 {[%emt 0:00:11]} Nd6 {[%emt 0:01:41]} 27. Rd1 {[%emt 0:03:42]} Qxe4 {[%emt 0:01:37]} 28. Be3 Qb7 {[%emt 0:07:26]} 29. Qxb7 {[%emt 0:02:20]} Nxb7 {[%emt 0:00:05]} 30. Rb1 {[%emt 0:00:14]} Bd6 {[%emt 0:05:11]} 31. Rxb5 {[%emt 0:00:10]} Re7 {[%emt 0:00:08]} 32. g3 {[%emt 0:01:24]} f6 {[%emt 0:00:30]} 33. Nd2 {[%emt 0:01:37]} Rd7 {[%emt 0:01:01]} 34. Ne4 {[%emt 0:00:31]} Be7 {[%emt 0:00:37]} 35. g4 {[%emt 0:01:17]} Kf7 {[%emt 0:00:20]} 36. Kg2 {[%emt 0:01:06]} Nd6 {[%emt 0:00:59]} 37. Nxd6+ {[%emt 0:00:06]} Bxd6 {[%emt 0:00:26]} 38. Bc5 {[%emt 0:00:11]} Bxc5 {[%emt 0:00:07]} 39. Rxc5 {[%emt 0:00:02]} Ke6 {[%emt 0:01:18]} 40. h3 {[%emt 0:00:50]} Ra7 {[%emt 0:00:05]} 41. Rc8 {[%emt 0:30:37]} 1/2-1/2